Cogmind - Beta 17.1 @@@ ROGUE MODE // 2026.09.17 @ 21:57:06 Player: MOPO3 Result: Destroyed by C-40 Crusher with Compactor Performance ------------- Evolutions (4) 2000 Regions Visited (7) 1400 Robots Destroyed (40) 200 Value Destroyed (1106) 1106 Prototype IDs (34) 680 Alien Tech Used (0) 0 Bonus (800) 800 TOTAL SCORE: 6186 Bonus ------- Registered with UFD 300 Met Optimus in HQ 500 Cogmind --------- Core Integrity 0/850 Matter 66/300 Energy 100/100 System Corruption 8% Temperature Cool (0) Movement Core (50) Location -6/Waste Parts ------- > --- POWER (1) -------- (None) > --- PROPULSION (2) --- (None) > --- UTILITY (8) ------ (None) > --- WEAPON (4) ------- (None) > --- INVENTORY (5) ---- Light Deuterium Engine Particle Cannon Plasma Cannon Gauss Rifle EMP Blaster Peak State ------------ > --- POWER ------------ Light Deuterium Engine > --- PROPULSION ------- Compact Wheel Armored Wheel > --- UTILITY ---------- Scrap Suit Cryofiber Web High-capacity Storage Unit Enhanced Optical Array Sensor Array Experimental Signal Interpreter Light Armor Plating > --- WEAPON ----------- Phase Cannon Compact Ion Cannon Light Cannon Improved Light Cannon > --- INVENTORY -------- Light Deuterium Engine Medium Matter Pod Light Armor Plating Light Armor Plating Improved Shield Generator Particle Cannon Plasma Cannon Gauss Rifle Light Cannon Light Cannon Assault Cannon EMP Blaster Makeshift Hammer [Rating: 50] Favorites ----------- Power Light Ion Engine Engine Light Ion Engine Propulsion Light Treads Treads Light Treads Wheel Armored Wheel Utility High-capacity Storage Unit Device Seismic Detector Storage High-capacity Storage Unit Processor Experimental Signal Interpreter Protection Light Armor Plating Weapon Light Cannon Energy Gun Medium Laser Energy Cannon Phase Cannon Ballistic Cannon Light Cannon Launcher Grenade Launcher Impact Weapon Hammer Build | -11 -10 -10 -10 -9 -9 -6 -6 ------- Run | Yrd Mat Min Sub Rec Scr Fac Was Slots Evolved 8 | . . . . . . 8 . Power . | . . . . . . . . Propulsion . | . . . . . . . . Utility 6 | . . . . . . 6 . Weapon 2 | . . . . . . 2 . Parts Attached 49 | 9 10 3 9 3 5 9 1 Power 4 | 1 1 . 1 . 1 . . Engine 4 | 1 1 . 1 . 1 . . Core . | . . . . . . . . Reactor . | . . . . . . . . Propulsion 13 | 4 . 2 2 2 3 . . Treads 8 | 2 . 2 1 2 1 . . Leg . | . . . . . . . . Wheel 5 | 2 . . 1 . 2 . . Hover . | . . . . . . . . Flight . | . . . . . . . . Utility 14 | 2 3 . 2 1 . 5 1 Device 4 | 1 . . . . . 3 . Storage 3 | 1 2 . . . . . . Processor 2 | . . . . . . 2 . Hackware . | . . . . . . . . Protection 5 | . 1 . 2 1 . . 1 Artifact . | . . . . . . . . Weapon 18 | 2 6 1 4 . 1 4 . Energy Gun 2 | 2 . . . . . . . Energy Cannon 3 | . . . 1 . 1 1 . Ballistic Gun . | . . . . . . . . Ballistic Cannon 10 | . 4 1 2 . . 3 . Launcher 1 | . 1 . . . . . . Special Weapon . | . . . . . . . . Impact Weapon 2 | . 1 . 1 . . . . Slashing Weapon . | . . . . . . . . Piercing Weapon . | . . . . . . . . Special Melee Weapon . | . . . . . . . . Unidentified Prototypes 1 | . . . . . . 1 . Parts Lost 16 | . . . 6 1 . . 9 Power 2 | . . . 1 . . . 1 Propulsion 3 | . . . 2 . . . 1 Utility 5 | . . . . 1 . . 4 Weapon 6 | . . . 3 . . . 3 Highest Loss Streak 9 | . . . 3 1 . . 9 To Critical Strikes 1 | . . . . . . . 1 Average Backups 17 | 2 15 19 18 17 18 11 9 Power 1 | . 1 1 . 1 1 1 1 Propulsion 2 | 1 3 3 1 2 1 . . Utility 7 | . 4 5 7 7 8 4 2 Weapon 7 | . 5 10 8 6 7 6 5 Tool/Special . | . . . . . . . . Unused Backups 31 | . 4 . 5 . 14 . 8 Power 3 | . . . . . 2 . 1 Propulsion 5 | . 1 . 1 . 3 . . Utility 11 | . 1 . 2 . 5 . 3 Weapon 12 | . 2 . 2 . 4 . 4 Tool/Special . | . . . . . . . . Average Slot Usage (%) 99 | . 99 100 99 99 100 89 62 Engine 13 | . 14 14 13 14 14 6 2 Treads 24 | . 28 28 27 25 22 . . Wheel 2 | . . . . 2 5 13 6 Device 1 | . 7 . . . . 19 14 Storage 13 | . 14 14 14 14 14 6 4 Protection 12 | . 6 14 14 13 14 6 3 Energy Gun 1 | . 7 . . . . . . Energy Cannon 3 | . . . 3 . 6 6 4 Ballistic Cannon 20 | . 12 27 21 25 21 19 13 Impact Weapon 2 | . 6 . 3 2 . . . Peak Build Rating 50 | 7 9 9 15 15 20 50 46 Average Rating 12 | 5 8 8 11 10 14 44 31 On Entrance 14 | . 7 9 9 15 10 19 46 Avg Prop Armor Cover (%) 10 | . . . 10 10 . . . Naked Turns 24 | . . . . . . . 24 Heaviest Build 74 | 13 54 54 60 53 59 74 74 Greatest Support 42 | 40 40 40 40 40 42 28 28 Greatest Overweight (x) 5 | 3 1 1 5 5 2 2 5 Average Overweight (x) 1 | . . 1 1 1 1 2 3 Largest Inventory Capacity 20 | 8 20 20 20 20 20 20 20 Average Capacity 19 | 7 18 20 20 20 20 20 14 Most Carried 20 | 4 20 20 20 20 20 18 12 Average Carried 18 | 2 15 19 19 19 19 11 9 Final Capacity 20 | 8 20 20 20 20 20 20 5 Final Carried 20 | 4 20 20 17 20 19 12 5 Scrap Suit Usage (%) 2 | . . . . . . 92 78 Parts Cannibalized 1 | . . . . . . 1 . Class Distribution -------------------- 95% | Mutant Dominant Class ---------------- Mutant | -10/Materials Mutant | -10/Mines Mutant | -10/Subcaves Mutant | -9/Recycling Mutant | -9/Scraptown Skirmisher | -6/Factory Skirmisher | -6/Waste Resources | -11 -10 -10 -10 -9 -9 -6 -6 ----------- Run | Yrd Mat Min Sub Rec Scr Fac Was Matter Collected 1552 | 290 296 52 580 184 150 . . Remotely . | . . . . . . . . Salvage Created 1365 | 94 367 . 439 191 . . 274 Parts 67 | 5 30 . 25 7 . . . Haulers Intercepted 1 | . 1 . . . . . . Recyclers Shooed . | . . . . . . . . Parts Field Recycled . | . . . . . . . . Retrieved Matter . | . . . . . . . . Parts Self-Destructed 10 | . . . 10 . . . . Prevented . | . . . . . . . . Parts Restored . | . . . . . . . . Kills | -11 -10 -10 -10 -9 -9 -6 -6 ------- Run | Yrd Mat Min Sub Rec Scr Fac Was Combat Hostiles Destroyed 34 | . 13 . 17 3 . . 1 Guns 3 | . 3 . . . . . . Cannons 28 | . 7 . 17 3 . . 1 AOE 3 | . 3 . . . . . . Classes Destroyed 9 | 2 3 . 2 1 . . 1 Builder 1 | . . . . 1 . . . Tunneler 1 | 1 . . . . . . . Hauler 1 | . 1 . . . . . . Recycler 3 | 1 1 . . 1 . . . Swarmer 10 | . 9 . 1 . . . . Grunt 7 | . 4 . 3 . . . . Sentry 4 | . . . 1 3 . . . Compactor 1 | . . . . . . . 1 Subdweller 12 | . . . 12 . . . . Best Kill Streak 4 | 2 4 . 2 2 . . 1 Combat Bots Only 3 | . 3 . 2 2 . . 1 Max Kills in Single Turn 2 | 1 2 . 1 1 . . 1 Gunslinging . | . . . . . . . . Exploded 2 | . 2 . . . . . . Melee . | . . . . . . . . Uniques/NPCs Destroyed . | . . . . . . . . Combat | -11 -10 -10 -10 -9 -9 -6 -6 -------- Run | Yrd Mat Min Sub Rec Scr Fac Was Hostile Shots Fired 189 | . 62 . 81 14 . . 32 Missed 39 | . 17 . 20 1 . . 1 Hits 150 | . 45 . 61 13 . . 31 Melee 31 | . . . . . . . 31 Projectile 119 | . 45 . 61 13 . . . AOE 1 | . . . 1 . . . . Critical Strikes 23 | . . . 2 2 . . 19 Damage Taken 3317 | . 463 . 1224 197 . . 1433 Core 1083 | . 46 . 139 . . . 898 Absorbed by Shields . | . . . . . . . . Regen/Repaired (Parts) 10 | . . . . . . 10 . Core Remaining (%) 63 | 100 . . . . 26 . . Volleys Fired 119 | 7 37 . 54 10 . . 11 Largest 4 | 2 2 . 2 2 . . 4 Hottest 185 | 90 90 . 113 60 . . 185 Shots Fired 235 | 14 57 . 107 20 . . 37 Gun 31 | 14 17 . . . . . . Cannon 201 | . 37 . 107 20 . . 37 Launcher 3 | . 3 . . . . . . Special . | . . . . . . . . Kinetic 183 | . 37 . 100 20 . . 26 Thermal 32 | 7 7 . 7 . . . 11 Explosive 3 | . 3 . . . . . . Electromagnetic 17 | 7 10 . . . . . . Robot Hit Streak 13 | 4 5 . 11 11 . . 13 Robot Miss Streak 6 | 1 6 . 5 1 . . 3 Penetration Max . | . . . . . . . . Secondary Targets . | . . . . . . . . Shots Hit Robots 157 | 10 26 . 75 16 . . 30 Core Hits 57 | 3 15 . 25 9 . . 5 Critical Kills . | . . . . . . . . Critical Parts Destroyed . | . . . . . . . . Critical Strikes 6 | 1 2 . 3 . . . . Burn 1 | 1 . . . . . . . Blast 5 | . 2 . 3 . . . . Melee Attacks 39 | . 15 . 20 4 . . . Impact 39 | . 15 . 20 4 . . . Slashing . | . . . . . . . . Piercing . | . . . . . . . . Sneak Attacks 1 | . 1 . . . . . . Combat Hostiles . | . . . . . . . . Follow-up Attacks . | . . . . . . . . Damage Inflicted 3264 | 127 646 . 1380 320 . . 791 Guns 206 | 127 79 . . . . . . Cannons 2710 | . 297 . 1336 286 . . 791 Explosions 190 | . 190 . . . . . . Melee 124 | . 80 . 44 . . . . Ramming 34 | . . . . 34 . . . Kinetic 2261 | . 297 . 1196 286 . . 482 Thermal 522 | 49 24 . 140 . . . 309 Explosive 190 | . 190 . . . . . . Electromagnetic 133 | 78 55 . . . . . . Impact 124 | . 80 . 44 . . . . Slashing . | . . . . . . . . Piercing . | . . . . . . . . Highest Corruption 8 | . . . . . . . 8 Average Corruption 8 | . . . . . . . 8 Corruption Purged . | . . . . . . . . Corruption Blocked . | . . . . . . . . Effects 4 | . . . . . . . 4 Message Errors 1 | . . . . . . . 1 Matter Fused 1 | . . . . . . . 1 Data Loss (minor) 1 | . . . . . . . 1 Alerts 1 | . . . . . . . 1 Overload Shots . | . . . . . . . . Overflow Damage 38 | . . . 24 14 . . . Projectiles 14 | . . . . 14 . . . Explosions . | . . . . . . . . Melee 24 | . . . 24 . . . . Knockbacks 18 | . 3 . 15 . . . . Impact 1 | . . . 1 . . . . Kinetic 17 | . 3 . 14 . . . . Secondary . | . . . . . . . . Self-Inflicted Damage 12 | . 12 . . . . . . Shots 1 | . 1 . . . . . . Rammed 9 | . . . . 9 . . . Targets Rammed 10 | . . . . 10 . . . Kicked . | . . . . . . . . Crushed 1 | . . . . 1 . . . Highest Temperature 503 | 150 90 . 244 45 . . 503 Average Temperature 83 | 64 29 . 58 23 . . 245 Received Heat Transfer 709 | . 108 . 502 99 . . . Effects 3 | . . . . . . . 3 Energy Bleed 1 | . . . . . . . 1 Interference 1 | . . . . . . . 1 Matter Decay 1 | . . . . . . . 1 Siege Activations . | . . . . . . . . Martial Activations . | . . . . . . . . Shielding Activations . | . . . . . . . . Robots Disrupted . | . . . . . . . . Combat Hostiles . | . . . . . . . . Robots Corrupted . | . . . . . . . . Combat Hostiles . | . . . . . . . . Parts Fried . | . . . . . . . . Impact Corruptions 1 | . . . 1 . . . . Robots Melted . | . . . . . . . . Combat Hostiles . | . . . . . . . . Parts Melted . | . . . . . . . . Heat Transferred 851 | 222 74 . 185 . . . 370 Parts Sabotaged . | . . . . . . . . Parts Stolen . | . . . . . . . . Parts Stripped . | . . . . . . . . Power Chain Reactions . | . . . . . . . . Alert | -11 -10 -10 -10 -9 -9 -6 -6 ------- Run | Yrd Mat Min Sub Rec Scr Fac Was Maximum Alert Level . | . . . . . . . . Low Security (%) 100 | 100 100 100 . 100 . 100 100 Level 1 . | . . . . . . . . Level 2 . | . . . . . . . . Level 3 . | . . . . . . . . Level 4 . | . . . . . . . . Level 5 . | . . . . . . . . High Security . | . . . . . . . . Max Security . | . . . . . . . . Peak Influence 136 | 5 136 18 . 32 . . 1 Initial 18 | . . 18 . 7 . . . Average 23 | . 53 2 . 5 . . . Influence Increases 811 | 10 417 . 135 248 . . 1 Destroy 0b10 Robot/C 420 | . 260 . 100 60 . . . Destroy 0b10 Robot/NC 30 | 10 10 . . 10 . . . Destroy Leader 72 | . 52 . 20 . . . . Successful Hack 62 | . 39 . . 23 . . . Select Force Hacks 150 | . . . . 150 . . . Disable Machine 15 | . 15 . . . . . . Destroy Structure 32 | . 26 . . 5 . . 1 Lose Combat Pursuer 30 | . 15 . 15 . . . . Influence Decreases 811 | 10 368 49 120 263 . . 1 Entered New Map 39 | . . 31 . 8 . . . Time Decay 761 | 10 368 18 120 245 . . . Lost Part 11 | . . . . 10 . . 1 Squads Dispatched 2 | . 2 . . . . . . Investigation 1 | . 1 . . . . . . Extermination . | . . . . . . . . Reinforcement 1 | . 1 . . . . . . Assault . | . . . . . . . . Garrison . | . . . . . . . . Intercept . | . . . . . . . . Searches Triggered . | . . . . . . . . Construction Impeded . | . . . . . . . . Haulers Reinforced . | . . . . . . . . Active Scanning Responses . | . . . . . . . . Cargo Convoy Interrupts . | . . . . . . . . Stealth | -11 -10 -10 -10 -9 -9 -6 -6 --------- Run | Yrd Mat Min Sub Rec Scr Fac Was Distress Signals 1 | . 1 . . . . . . Communications Jammed . | . . . . . . . . Distress Signals . | . . . . . . . . Times Spotted 53 | . 25 . 22 3 . . 3 Peak Tracking Total 4 | . 4 . 2 3 . . 3 Tactical Retreats 2 | . 1 . 1 . . . . Traps | -11 -10 -10 -10 -9 -9 -6 -6 ------- Run | Yrd Mat Min Sub Rec Scr Fac Was Traps Triggered 3 | . 2 . . . . 1 . Indirectly . | . . . . . . . . Trap Hack Attempts . | . . . . . . . . Triggered . | . . . . . . . . Disarmed . | . . . . . . . . Reprogrammed . | . . . . . . . . Reused . | . . . . . . . . Traps Extracted . | . . . . . . . . Installed . | . . . . . . . . Triggered . | . . . . . . . . Machines | -11 -10 -10 -10 -9 -9 -6 -6 ---------- Run | Yrd Mat Min Sub Rec Scr Fac Was Machines Disabled 2 | . 1 . 1 . . . . Max in Single Turn 1 | . 1 . 1 . . . . Machines Repaired . | . . . . . . . . Machines Dismantled . | . . . . . . . . Machines Sabotaged . | . . . . . . . . Overloaded Fab Kills . | . . . . . . . . Hacking | -11 -10 -10 -10 -9 -9 -6 -6 --------- Run | Yrd Mat Min Sub Rec Scr Fac Was Machines Accessed 30 | . 9 . 2 12 6 1 . Terminals 12 | . 6 . . 6 . . . Fabricators . | . . . . . . . . Repair Stations 1 | . 1 . . . . . . Recycling Units 8 | . 2 . . 6 . . . Scanalyzers 1 | . . . . . . 1 . Garrison Access . | . . . . . . . . Total Hacks 115 | . 23 . 13 43 34 2 . Successful 80 | . 13 . 13 20 34 . . Failed 34 | . 10 . . 22 . 2 . Catastrophic 2 | . 2 . . . . . . Database Lockouts 1 | . . . . 1 . . . Manual 41 | . 13 . . 28 . . . Terminals 40 | . 17 . . 23 . . . Fabricators . | . . . . . . . . Repair Stations 2 | . 2 . . . . . . Recycling Units 24 | . 4 . . 20 . . . Scanalyzers 2 | . . . . . . 2 . Garrison Access . | . . . . . . . . Terminal Hacks 55 | . 4 . 13 4 34 . . Record 44 | . . . 12 . 32 . . Part Schematic 2 | . 1 . . 1 . . . Prototype ID Bank 3 | . . . . 3 . . . Open Door 1 | . . . . . 1 . . Branch Access Points 2 | . 2 . . . . . . Zone Layout 1 | . 1 . . . . . . Proto ID Catalog 2 | . . . 1 . 1 . . Fabricator Hacks . | . . . . . . . . Repair Station Hacks . | . . . . . . . . Recycling Unit Hacks 9 | . 4 . . 5 . . . Report Inventory 3 | . 3 . . . . . . Retrieve Components 6 | . 1 . . 5 . . . Scanalyzer . | . . . . . . . . Garrison Access Hacks . | . . . . . . . . Unauthorized Hacks 16 | . 5 . . 11 . . . Terminals 11 | . 5 . . 6 . . . Botnet 11 | . 5 . . 6 . . . Fabricators . | . . . . . . . . Repair Stations . | . . . . . . . . Recycling Units 5 | . . . . 5 . . . Tunnel 5 | . . . . 5 . . . Scanalyzers . | . . . . . . . . Garrison Access . | . . . . . . . . Data Cores Recovered . | . . . . . . . . Used . | . . . . . . . . Hacking Detections 17 | . 7 . . 9 . 1 . Full Trace Events 7 | . . . . 7 . . . Feedback Events . | . . . . . . . . Feedback Blocked . | . . . . . . . . Robot Schematics Acquired . | . . . . . . . . Robots Built . | . . . . . . . . Authchips . | . . . . . . . . Time . | . . . . . . . . Total Robot Build Rating . | . . . . . . . . Part Schematics Acquired 2 | . 1 . . 1 . . . Parts Built . | . . . . . . . . Authchips . | . . . . . . . . Time . | . . . . . . . . Total Part Build Rating . | . . . . . . . . Part Studies Acquired . | . . . . . . . . Parts Repaired . | . . . . . . . . Time . | . . . . . . . . Parts Recycled . | . . . . . . . . Recycled Matter . | . . . . . . . . Retrieved Matter . | . . . . . . . . Retrieved Components 11 | . 3 . . 8 . . . Parts Scanalyzed . | . . . . . . . . Part Schematics Acquired . | . . . . . . . . Parts Damaged . | . . . . . . . . Bothacking | -11 -10 -10 -10 -9 -9 -6 -6 ------------ Run | Yrd Mat Min Sub Rec Scr Fac Was Used RIF Installer . | . . . . . . . . Robots Hacked . | . . . . . . . . Non-combat . | . . . . . . . . Combat . | . . . . . . . . Robot Hacks Applied . | . . . . . . . . Relay Couplers Released . | . . . . . . . . Fabnet Peak Effective % . | . . . . . . . . Robots Rewired . | . . . . . . . . Allies Hacked . | . . . . . . . . Hacks Repelled . | . . . . . . . . Allies | -11 -10 -10 -10 -9 -9 -6 -6 -------- Run | Yrd Mat Min Sub Rec Scr Fac Was Total Allies . | . . . . . . . . Largest Group . | . . . . . . . . Highest-Rated Group . | . . . . . . . . Highest-Rated Ally . | . . . . . . . . Initial UFD Resources 22 | . . . . . . 22 22 Total Orders . | . . . . . . . . Ally Attacks . | . . . . . . . . Total Damage . | . . . . . . . . Kills . | . . . . . . . . Allies Corrupted . | . . . . . . . . Allies Melted . | . . . . . . . . Intel | -11 -10 -10 -10 -9 -9 -6 -6 ------- Run | Yrd Mat Min Sub Rec Scr Fac Was Active Infowar (turns) 1202 | 37 899 . . . . 205 61 Optics 265 | . . . . . . 204 61 Sensors 266 | . . . . . . 205 61 Seismic 936 | 37 899 . . . . . . Robot Analysis Total . | . . . . . . . . Derelict Logs Recovered 3 | . . . 1 . 2 . . Drone Launches . | . . . . . . . . Drone Recoveries . | . . . . . . . . Exploration | -11 -10 -10 -10 -9 -9 -6 -6 ------------- Run | Yrd Mat Min Sub Rec Scr Fac Was Turns Passed 13137 | 128 1781 239 4310 1926 4432 210 111 Spaces Moved 5700 | 63 691 82 1681 838 2163 159 23 Core 17 | 17 . . . . . . . Treads 4627 | 33 691 82 1670 629 1522 . . Legs . | . . . . . . . . Wheels 1056 | 13 . . 11 209 641 159 23 Hover . | . . . . . . . . Flight . | . . . . . . . . Fastest Speed 50 | 50 160 240 155 140 125 125 125 Average Speed 216 | 143 220 240 240 218 202 125 143 Slowest Speed 320 | 200 240 240 320 240 240 125 165 Overloaded Moves . | . . . . . . . . Propulsion Burnouts . | . . . . . . . . Robots Hopped . | . . . . . . . . Potential Cave-ins 3 | . . . 3 . . . . Cave-ins Triggered . | . . . . . . . . Exploration Rate (%) 52 | 4 98 19 73 99 96 7 24 Regions Visited 7 Branch Regions 4 Pre-discovered Areas 5 | . . . . 5 . . . Known Exits Taken 2 | . 1 . 1 . . . . Unknown Exits Taken 4 | 1 . 1 . 1 1 . . Scrap Searched 16 | . . . 6 . 10 . . Spaces Dug 15 | . 8 . 3 4 . . . Terrain Destroyed 33 | . 24 . 4 4 . . 1 Melee 15 | . 8 . 3 4 . . . Projectile 2 | . . . 1 . . . 1 AOE 16 | . 16 . . . . . . Terrain Rammed . | . . . . . . . . Walls Destroyed . | . . . . . . . . Machines Disabled . | . . . . . . . . Actions | -11 -10 -10 -10 -9 -9 -6 -6 --------- Run | Yrd Mat Min Sub Rec Scr Fac Was Total 6243 | 82 869 128 1809 893 2215 171 76 Wait 193 | . 81 34 9 22 7 . 40 Move 5694 | 62 690 81 1680 837 2162 159 23 Hop . | . . . . . . . . Pick Up 66 | 4 21 4 10 5 20 2 . Fast Attach 8 | 7 1 . . . . . . Attach 19 | . 1 . 7 1 . 8 2 Detach 2 | . 2 . . . . . . Swap 43 | 2 12 3 17 3 5 1 . Drop 50 | . 9 6 12 1 21 1 . Fire 119 | 7 37 . 54 10 . . 11 Melee 39 | . 15 . 20 4 . . . Ram . | . . . . . . . . Kick . | . . . . . . . . Crush 10 | . . . . 10 . . . Escape Stasis . | . . . . . . . . Rewire . | . . . . . . . . Trap . | . . . . . . . . Miscellaneous . | . . . . . . . . Route ------- -11/Scrapyard -10/Materials (discovered 4 exits: [*Mat x3] / *Min) -10/Mines -10/Subcaves (discovered 3 exits: [*Mat x2] / *Rec) -9/Recycling (discovered 2 exits: [*Fac] / *Scr) -9/Scraptown (discovered 2 exits: *Fac x2) -6/Factory -6/Waste History --------- Turn | Location | Event 23 | -11/Scrapyard | Discovered new exit (range 15) 129 | -11/Scrapyard | Entered Materials 307 | -10/Materials | Identified exit to Mines 307 | -10/Materials | Discovered new exit (range 15) 314 | -10/Materials | Build established: Mutant 687 | -10/Materials | Discovered new exit (range 8) 1361 | -10/Materials | Discovered new exit (range 4) 1910 | -10/Materials | Entered Mines 1939 | -10/Mines | Met a Derelict bent on vengeance 1948 | -10/Mines | Joined a pair of Derelicts in attacking an 0b10 outpost 2072 | -10/Mines | Discovered new exit (range 5) 2149 | -10/Mines | Entered Subcaves 2150 | -10/Subcaves | Approached by a straggling Scientist 2768 | -10/Subcaves | Visited 4L-MR0's lab 2902 | -10/Subcaves | Learned 2 Materials zone layouts 2998 | -10/Subcaves | Ambushed by Subdweller buried in earth 3496 | -10/Subcaves | Discovered new exit (range 6) 3522 | -10/Subcaves | Discovered new exit (range 8) 3524 | -10/Subcaves | Shifting Twisted Machinery released Sub. Optics 3530 | -10/Subcaves | Shifting Twisted Machinery released Sub. Beam Cannon 3581 | -10/Subcaves | Shifting Twisted Machinery released Scrap Shield 3612 | -10/Subcaves | Shifting Twisted Machinery released Battle Cannon 3936 | -10/Subcaves | A swath of the cavern ceiling suddenly collapsed 4180 | -10/Subcaves | Build established: Scavenger-Mutant 4223 | -10/Subcaves | Disturbed a concealed Subdweller 4528 | -10/Subcaves | Build established: Mutant 4945 | -10/Subcaves | Visited Clippyterm 4952 | -10/Subcaves | Identified exit to Recycling 5143 | -10/Subcaves | Core integrity fell below 50% 6313 | -10/Subcaves | A swath of the cavern ceiling suddenly collapsed 6367 | -10/Subcaves | Lost 3 parts (1n2w) 6459 | -10/Subcaves | Entered Recycling 6542 | -9/Recycling | Scanned before Scraplab entrance 7664 | -9/Recycling | Discovered new exit (range 16) 8359 | -9/Recycling | Entered Scraplab 8378 | -9/Recycling | Discovered new exit (range 3) 8385 | -9/Recycling | Entered Scraptown 9687 | -9/Scraptown | Discovered new exit (range 7) 9882 | -9/Scraptown | Scanned Subdweller tech in exchange for log data 9886 | -9/Scraptown | Learned location of 1 exit from Factory 9889 | -9/Scraptown | Learned Research terminal intel 10002 | -9/Scraptown | Visited Bundlers 10194 | -9/Scraptown | Visited Cyclists 10261 | -9/Scraptown | Visited Spacefarers 11001 | -9/Scraptown | Visited Shadow of the Wyrm 11061 | -9/Scraptown | Visited Junk Repository 11171 | -9/Scraptown | Visited UFD Registry 11203 | -9/Scraptown | Visited CPS Storage 11263 | -9/Scraptown | Visited Assassins FH 11331 | -9/Scraptown | Registered with UFD as "Metalunit" 11421 | -9/Scraptown | Entered Cyclist Reading Room 11600 | -9/Scraptown | Visited Abandonware Association 11667 | -9/Scraptown | Learned abandonware demo "ERRANTS.EXE" 11667 | -9/Scraptown | Learned abandonware demo "REVENGE.EXE" 11727 | -9/Scraptown | Visited Curators Association 11809 | -9/Scraptown | Visited DA-N13 Charitable Foundation 11830 | -9/Scraptown | Found DCF Scrap (30 items) 12019 | -9/Scraptown | Found Scrap Suit 12073 | -9/Scraptown | Discovered new exit (range 5) 12123 | -9/Scraptown | Visited Sword Containment 12155 | -9/Scraptown | Visited Junk Repository 12217 | -9/Scraptown | Visited Infowarlord's Domain 12229 | -9/Scraptown | Found Exp. Signal Interpreter 12251 | -9/Scraptown | Visited Chapter 10 12321 | -9/Scraptown | Delivered Scrap Shield to a Scientist 12464 | -9/Scraptown | Visited Science Guys 12516 | -9/Scraptown | Visited Science Testing Area 12559 | -9/Scraptown | Visited Scrapoid Pod Storage 12725 | -9/Scraptown | Met Optimus 12725 | -9/Scraptown | Accepted into 0bPrime 12817 | -9/Scraptown | Entered Factory 12817 | -6/Factory | Evolved 8 slots: Utility x6, Weapon x2 12818 | -6/Factory | Identified exit to Extension 13027 | -6/Factory | Sucked down chute 13027 | -6/Factory | Entered Waste 13039 | -6/Waste | Spotted C-40 Crusher 13041 | -6/Waste | Spotted C-40 Crusher 13042 | -6/Waste | EMP discharged 13056 | -6/Waste | Spotted C-40 Crusher 13064 | -6/Waste | Crushed by Compactor (1 part destroyed, 2 dropped) 13067 | -6/Waste | Crushed by Compactor (1 part destroyed) 13067 | -6/Waste | Destroyed C-40 Crusher 13093 | -6/Waste | Crushed by Compactor (1 part destroyed, 1 dropped) 13096 | -6/Waste | Crushed by Compactor (1 part destroyed) 13099 | -6/Waste | Crushed by Compactor (1 part destroyed, 2 dropped) 13102 | -6/Waste | Crushed by Compactor (0 parts destroyed, 1 dropped) 13102 | -6/Waste | Crushed by Compactor (1 part destroyed, 1 dropped) 13105 | -6/Waste | Crushed by Compactor (0 parts destroyed, 1 dropped) 13108 | -6/Waste | Crushed by Compactor (0 parts destroyed, 1 dropped) 13114 | -6/Waste | Crushed by Compactor (1 part destroyed) 13124 | -6/Waste | Core integrity fell below 50% 13133 | -6/Waste | Core integrity fell below 20% 13138 | -6/Waste | Destroyed by C-40 Crusher with Compactor Last Messages --------------- 13099_ Hcp. Storage Unit crushed. 13099_ Cryofiber Web crushed. 13099_ Arm. Wheel crushed. 13099_ 4 Matter crushed. 13101_ System corrupted: Component data lost. 13101_ 3 Matter crushed. 13102_ Imp. Shield Generator crushed. 13102_ Sensor Array crushed. 13102_ Mak. Hammer crushed. 13102_ Lgt. Cannon crushed. 13105_ Sensor Array crushed. 13105_ Phase Cannon crushed. 13105_ Lgt. Cannon crushed. 13108_ Phase Cannon crushed. 13108_ Enh. Optical Array crushed. 13114_ Critical hit (Destroy). 13114_ Scrap Suit destroyed. 13114_ Exp. Signal Interpreter crushed. 13132_ ALERT: Foreign system detected. Charging EMP. 13133_ System corrupted: Matter fused (-7). Map ----- +----------------------------------------------------+ | ???????????????????????????? #????????????? | | ???????????????????????????? #????????????? | | ???????????????????????????? #????????????? | | ???????????????????????????? ##???????????? | | ???????????????????????????? ???????????? | | ???????????????????????????? ????????????? | | ???????????????????????????? ????????????? | | ???????????????????????????? ????????????? | | ???????????????????????????# #????????????? | | ???????????????????????????# % #????????????? | | ???????????????????????????# #????????????? | | ???????????????????????????# #????????????? | | ??????????????????????????## #????????????? | | ???????????????????????????% % ##???????????? | | ???????????????????????????% "????????????? | | ???????????????????????????% %#????????????? | | ??????????????????????????? #????????????? | | ???????????????????????????#" #????????????? | | ?????????????############??# " #????????????? | | ?????????????# #??# #????????????? | | ?????????????# #??# #????????????? | | ?????????????# #### #????????????? | | ?????????????# #????????????? | | ?????????????# CC #????????????? | | ?????????????# CCCC #????????????? | | ?????????????# !@CC #????????????? | | ?????????????# !]= #### #????????????? | | ?????????????# #??# #????????????? | | ?????????????# #??# #????????????? | | ?????????????############??# #????????????? | | ???????????????????????????# #????????????? | | ???????????????????????????######????????????? | | ?????????????????????????????????????????????? | | ?????????????????????????????????????????????? | | ?????????????????????????????????????????????? | | ?????????????????????????????????????????????? | | ?????????????????????????????????????????????? | | ?????????????????????????????????????????????? | | ?????????????????????????????????????????????? | | ?????????????????????????????????????????????? | | ?????????????????????????????????????????????? | | ?????????????????????????????????????????????? | | ?????????????????????????????????????????????? | | ?????????????????????????????????????????????? | | ?????????????????????????????????????????????? | | ?????????????????????????????????????????????? | | ?????????????????????????????????????????????? | | ?????????????????????????????????????????????? | | ?????????????????????????????????????????????? | | ?????????????????????????????????????????????? | +----------------------------------------------------+ Best States ------------- Heat Dissipation 37 Energy Generation 14 Energy Capacity 250 Matter Stores 300 Matter Capacity 300 Sight Range 22 Robot Scan Range 14 Terrain Scan Density 10 Base Temperature (-) 100 Armor Coverage 150 Evasion (%) 40 Recoil Reduction 2 Item Schematics ----------------- Sml. Storage Unit | -10/Materials | Hacked Signal Interpreter | -9/Recycling | Hacked Robot Schematics ------------------ None Fabricated ------------ Nothing Repaired ---------- Nothing Studied --------- None Alien Tech Used ----------------- None Achievements -------------- None Challenges ------------ None Game ------ Seed BarrageDeflectorFirepult Manual? 0 Play Time 01:05:25 Cumulative 30.5 hours Start 2026.09.17 @ 17:00:02 End 2026.09.17 @ 21:57:06 Sessions 1 Manual Loads 0 Difficulty Rogue Special Mode None Game No. 34 Rogue 34 Adventurer 0 Explorer 0 Win Type - Total 1 Types 1/0/0/0/0/0/0/0/0/0 Lore% 33 Gallery% 30 Achievement% 29 Wizard Run 0 Options --------- Layout 0 ASCII 0 Keyboard 0 Movement Numpad Keybinds 0 Fullscreen 1 Font 18/Terminus Map View 76x50 Zoom Use 0% Tactical HUD 1 Map Filters NONE Filters NONE Steam 1 RUN: f531d6b1-66cc-4434-aa7b-aa037ec337d1